fUST/lending_fUST_20251209
["ID","MTS","AMOUNT","RATE_DAILY","PERIOD"]
[397815079,1765233041499,-500.0,8.219e-05,2]
[397815081,1765233041508,-500.0,8.219e-05,2]
[397815083,1765233041517,-500.0,8.219e-05,2]
[397815085,1765233041526,-500.0,8.219e-05,2]
[397815087,1765233041535,-499.97709808,8.219e-05,2]
[397815089,1765233041544,-500.0,8.219e-05,2]
[397815091,1765233041555,-500.0,8.219e-05,2]
[397815093,1765233041564,-408.72389385,8.219e-05,2]
[397815096,1765233041575,-91.27610615,8.219e-05,2]
[397815098,1765233041584,-500.0,8.219e-05,2]
[397815100,1765233041593,-500.0,8.219e-05,2]
[397815102,1765233041602,-500.0,8.219e-05,2]
[397815104,1765233041611,-615.56,8.219e-05,2]
[397815106,1765233041621,-1103.25,8.219e-05,2]
[397815107,1765233041630,-500.0,8.219e-05,2]
[397815134,1765233041859,-500.0,8.219e-05,2]
[397815136,1765233041870,-500.0,8.219e-05,2]
[397815138,1765233041879,-500.0,8.219e-05,2]
[397815140,1765233041888,-500.0,8.219e-05,2]
[397815142,1765233041898,-500.0,8.219e-05,2]
[397815144,1765233041907,-500.0,8.219e-05,2]
[397815146,1765233041916,-955.44,8.219e-05,2]
[397815148,1765233041925,-500.0,8.219e-05,2]
[397815150,1765233041934,-183.92254281,8.219e-05,2]
[397815152,1765233041943,-500.0,8.219e-05,2]
[397815154,1765233041952,-500.0,8.219e-05,2]
[397815156,1765233041961,-757.78,8.219e-05,2]
[397815158,1765233041971,-634.28,8.219e-05,2]
[397815160,1765233041979,-500.0,8.219e-05,2]
[397815162,1765233041989,-468.58668816,8.219e-05,2]
[397815164,1765233041998,-867.75,8.219e-05,2]
[397815166,1765233042007,-500.0,8.219e-05,2]
[397815168,1765233042016,-500.0,8.219e-05,2]
[397815170,1765233042026,-500.0,8.219e-05,2]
[397815172,1765233042035,-846.63,8.219e-05,2]
[397815174,1765233042044,-500.0,8.219e-05,2]
[397815176,1765233042053,-500.0,8.219e-05,2]
[397815177,1765233042062,-500.0,8.219e-05,2]
[397815179,1765233042071,-487.19123253,8.219e-05,2]
[397815181,1765233042082,-500.0,8.219e-05,2]
[397815184,1765233042092,-1010.45,8.219e-05,2]
[397815186,1765233042101,-869.93,8.219e-05,2]
[397815188,1765233042111,-902.3,8.219e-05,2]
[397815190,1765233042121,-500.0,8.219e-05,2]
[397815191,1765233042130,-500.0,8.219e-05,2]
[397815193,1765233042140,-1010.49,8.219e-05,2]
[397815195,1765233042151,-500.0,8.219e-05,2]
[397815198,1765233042160,-564.01,8.219e-05,2]
[397815200,1765233042170,-500.0,8.219e-05,2]
[397815201,1765233042180,-3101.60778691,8.219e-05,2]
[397815258,1765233042659,-1246.05221309,8.219e-05,2]
[397815260,1765233042668,-500.0,8.219e-05,2]
[397815262,1765233042678,-500.0,8.219e-05,2]
[397815264,1765233042687,-500.0,8.219e-05,2]
[397815266,1765233042696,-500.0,8.219e-05,2]
[397815268,1765233042711,-500.0,8.219e-05,2]
[397815270,1765233042719,-500.0,8.219e-05,2]
[397815272,1765233042728,-500.0,8.219e-05,2]
[397815274,1765233042737,-500.0,8.219e-05,2]
[397815276,1765233042748,-977.06,8.219e-05,2]
[397815279,1765233042757,-1811.95,8.219e-05,2]
[397815282,1765233042767,-500.0,8.219e-05,2]
[397815284,1765233042777,-500.0,8.219e-05,2]
[397815285,1765233042786,-821.54,8.219e-05,2]
[397815287,1765233042795,-567.38925382,8.219e-05,2]
[397815291,1765233042807,-636.52074618,8.219e-05,2]
[397815293,1765233042816,-1288.22,8.219e-05,2]
[397815295,1765233042825,-500.0,8.219e-05,2]
[397815297,1765233042834,-500.0,8.219e-05,2]
[397815299,1765233042842,-716.37,8.219e-05,2]
[397815301,1765233042851,-515.3,8.219e-05,2]
[397815303,1765233042860,-500.0,8.219e-05,2]
[397815305,1765233042869,-888.66235713,8.219e-05,2]
[397815382,1765233043574,-360.16764287,8.219e-05,2]
[397815383,1765233043584,-500.0,8.219e-05,2]
[397815384,1765233043593,-500.0,8.219e-05,2]
[397815385,1765233043602,-500.0,8.219e-05,2]
[397815386,1765233043611,-795.83,8.219e-05,2]
[397815387,1765233043620,-500.0,8.219e-05,2]
[397815389,1765233043631,-4267.82,8.219e-05,2]
[397815391,1765233043640,-680.62,8.219e-05,2]
[397815393,1765233043649,-500.0,8.219e-05,2]
[397815395,1765233043659,-500.0,8.219e-05,2]
[397815397,1765233043668,-603.21,8.219e-05,2]
[397815399,1765233043677,-2025.15,8.219e-05,2]
[397815401,1765233043686,-500.0,8.219e-05,2]
[397815404,1765233043696,-500.0,8.219e-05,2]
[397815405,1765233043709,-500.0,8.219e-05,2]
[397815408,1765233043719,-632.02,8.219e-05,2]
[397815410,1765233043729,-500.0,8.219e-05,2]
[397815412,1765233043739,-873.43,8.219e-05,2]
[397815414,1765233043748,-500.0,8.219e-05,2]
[397815416,1765233043757,-500.0,8.219e-05,2]
[397815418,1765233043766,-500.0,8.219e-05,2]
[397815420,1765233043776,-3682.836384,8.219e-05,2]
[397815422,1765233043785,-521.29,8.219e-05,2]
[397815424,1765233043794,-1653.03,8.219e-05,2]
[397815426,1765233043803,-500.0,8.219e-05,2]
[397815428,1765233043811,-500.0,8.219e-05,2]
[397815429,1765233043821,-500.0,8.219e-05,2]
[397815432,1765233043831,-2946.91,8.219e-05,2]
[397815434,1765233043841,-543.27580385,8.219e-05,2]
[397815435,1765233043850,-500.0,8.219e-05,2]
[397815438,1765233043859,-644.97,8.219e-05,2]
[397815440,1765233043868,-500.0,8.219e-05,2]
[397815441,1765233043877,-1518.09158017,8.219e-05,2]
[397815444,1765233043893,-86.86841983,8.219e-05,2]
[397815446,1765233043903,-500.0,8.219e-05,2]
[397815454,1765233043964,-451.20137705,8.219e-05,2]
[397815678,1765233046023,-115.78862295,8.219e-05,2]
[397815680,1765233046033,-500.0,8.219e-05,2]
[397815682,1765233046043,-500.0,8.219e-05,2]
[397815684,1765233046052,-500.0,8.219e-05,2]
[397815686,1765233046064,-500.0,8.219e-05,2]
[397815688,1765233046074,-500.0,8.219e-05,2]
[397815690,1765233046085,-1017.58,8.219e-05,2]
[397815693,1765233046095,-500.0,8.219e-05,2]
[397815695,1765233046104,-500.0,8.219e-05,2]
[397815696,1765233046113,-601.07,8.219e-05,2]
[397815699,1765233046122,-500.0,8.219e-05,2]
[397815701,1765233046133,-1476.43,8.219e-05,2]
[397815703,1765233046143,-1120.39,8.219e-05,2]
[397815705,1765233046153,-500.0,8.219e-05,2]
[397815707,1765233046162,-1007.49,8.219e-05,2]
[397815709,1765233046172,-557.93,8.219e-05,2]
[397815711,1765233046181,-672.32,8.219e-05,2]
[397815713,1765233046190,-500.0,8.219e-05,2]
[397815715,1765233046200,-1353.55,8.219e-05,2]
[397815717,1765233046210,-1986.19368892,8.219e-05,2]
[397815719,1765233046222,-7519.68631108,8.219e-05,2]
[397815721,1765233046233,-758.19,8.219e-05,2]
[397815723,1765233046243,-1804.67,8.219e-05,2]
[397815725,1765233046252,-556.69,8.219e-05,2]
[397815728,1765233046263,-500.0,8.219e-05,2]
[397815730,1765233046272,-500.0,8.219e-05,2]
[397815732,1765233046281,-500.0,8.219e-05,2]
[397815734,1765233046291,-500.0,8.219e-05,2]
[397815736,1765233046300,-500.0,8.219e-05,2]
[397815738,1765233046309,-922.52,8.219e-05,2]
[397815740,1765233046318,-500.0,8.219e-05,2]
[397815742,1765233046327,-500.0,8.219e-05,2]
[397815744,1765233046337,-568.32,8.219e-05,2]
[397815746,1765233046346,-500.0,8.219e-05,2]
[397815748,1765233046355,-1314.88,8.219e-05,2]
[397815750,1765233046365,-3664.91,8.219e-05,2]
[397815752,1765233046374,-500.0,8.219e-05,2]
[397815754,1765233046383,-500.0,8.219e-05,2]
[397815756,1765233046392,-500.0,8.219e-05,2]
[397815758,1765233046401,-500.0,8.219e-05,2]
[397815760,1765233046410,-500.0,8.219e-05,2]
[397815762,1765233046420,-771.27,8.219e-05,2]
[397815764,1765233046430,-683.95,8.219e-05,2]
[397815766,1765233046439,-500.0,8.219e-05,2]
[397815768,1765233046448,-6427.9,8.219e-05,2]
[397815770,1765233046457,-1192.65,8.219e-05,2]
[397815772,1765233046466,-516.73,8.219e-05,2]
[397815774,1765233046476,-1407.06,8.219e-05,2]
[397815776,1765233046487,-500.0,8.219e-05,2]
[397815778,1765233046496,-1566.31,8.219e-05,2]
[397815780,1765233046505,-563.62,8.219e-05,2]
[397815782,1765233046515,-555.71,8.219e-05,2]
[397815784,1765233046524,-500.0,8.219e-05,2]
[397815786,1765233046534,-658.0,8.219e-05,2]
[397815788,1765233046543,-914.02,8.219e-05,2]
[397815790,1765233046553,-739.12,8.219e-05,2]
[397815792,1765233046562,-709.87,8.219e-05,2]
[397815795,1765233046571,-732.06,8.219e-05,2]
[397815797,1765233046581,-3677.03,8.219e-05,2]
[397815799,1765233046590,-500.0,8.219e-05,2]
[397815801,1765233046600,-500.0,8.219e-05,2]
[397815803,1765233046609,-1152.5,8.219e-05,2]
[397815805,1765233046619,-6780.03,8.219e-05,2]
[397815807,1765233046628,-500.0,8.219e-05,2]
[397815809,1765233046640,-500.0,8.219e-05,2]
[397815811,1765233046650,-500.0,8.219e-05,2]
[397815813,1765233046661,-2412.1,8.219e-05,2]
[397815815,1765233046671,-500.0,8.219e-05,2]
[397815817,1765233046680,-500.0,8.219e-05,2]
[397815819,1765233046692,-4018.11,8.219e-05,2]
[397815821,1765233046702,-833.15,8.219e-05,2]
[397815823,1765233046717,-1426.87,8.219e-05,2]
[397815826,1765233046727,-651.81,8.219e-05,2]
[397815828,1765233046736,-500.0,8.219e-05,2]
[397815830,1765233046747,-929.45,8.219e-05,2]
[397815831,1765233046758,-500.0,8.219e-05,2]
[397815834,1765233046768,-628.41,8.219e-05,2]
[397815836,1765233046778,-1251.18,8.219e-05,2]
[397815838,1765233046789,-308.97913539,8.219e-05,2]
[397815840,1765233046801,-255.80577545,8.219e-05,2]
[397815842,1765233046811,-600.82,8.219e-05,2]
[397815844,1765233046820,-2997.33,8.219e-05,2]
[397815846,1765233046830,-500.0,8.219e-05,2]
[397815848,1765233046839,-500.0,8.219e-05,2]
[397815850,1765233046848,-1208.32,8.219e-05,2]
[397815852,1765233046858,-855.05,8.219e-05,2]
[397815854,1765233046868,-500.0,8.219e-05,2]
[397815856,1765233046877,-500.0,8.219e-05,2]
[397815859,1765233046886,-500.0,8.219e-05,2]
[397815861,1765233046896,-500.0,8.219e-05,2]
[397815863,1765233046905,-500.0,8.219e-05,2]
[397815865,1765233046914,-784.93,8.219e-05,2]
[397815867,1765233046923,-500.0,8.219e-05,2]
[397815869,1765233046933,-500.0,8.219e-05,2]
[397815871,1765233046942,-500.0,8.219e-05,2]
[397815873,1765233046953,-500.0,8.219e-05,2]
[397815875,1765233046962,-500.0,8.219e-05,2]
[397815877,1765233046972,-1262.76,8.219e-05,2]
[397815879,1765233046981,-500.0,8.219e-05,2]
[397815881,1765233046991,-500.0,8.219e-05,2]
[397815883,1765233047000,-500.0,8.219e-05,2]
[397815885,1765233047009,-500.0,8.219e-05,2]
[397815887,1765233047018,-500.0,8.219e-05,2]
[397815889,1765233047027,-531.65,8.219e-05,2]
[397815891,1765233047037,-500.0,8.219e-05,2]
[397815893,1765233047046,-22678.01,8.219e-05,2]
[397815895,1765233047055,-1294.85,8.219e-05,2]
[397815897,1765233047065,-891.83,8.219e-05,2]
[397815899,1765233047074,-500.0,8.219e-05,2]
[397815901,1765233047084,-1679.84,8.219e-05,2]
[397815903,1765233047094,-500.0,8.219e-05,2]
[397815905,1765233047104,-6591.44,8.219e-05,2]
[397815907,1765233047114,-4845.21,8.219e-05,2]
[397815909,1765233047124,-500.0,8.219e-05,2]
[397815912,1765233047134,-502.11,8.219e-05,2]
[397815914,1765233047143,-625.51,8.219e-05,2]
[397815916,1765233047154,-500.0,8.219e-05,2]
[397815918,1765233047164,-500.0,8.219e-05,2]
[397815920,1765233047173,-3833.73,8.219e-05,2]
[397815922,1765233047182,-388.82544725,8.219e-05,2]
[397815924,1765233047191,-500.0,8.219e-05,2]
[397815925,1765233047201,-500.0,8.219e-05,2]
[397815928,1765233047211,-1176.68,8.219e-05,2]
[397815930,1765233047220,-500.0,8.219e-05,2]
[397815932,1765233047231,-500.0,8.219e-05,2]
[397815934,1765233047240,-653.41,8.219e-05,2]
[397815936,1765233047250,-2306.38,8.219e-05,2]
[397815938,1765233047259,-4927.97,8.219e-05,2]
[397815940,1765233047269,-866.26,8.219e-05,2]
[397815942,1765233047280,-500.0,8.219e-05,2]
[397815944,1765233047289,-236.47755706,8.219e-05,2]
[397815946,1765233047299,-542.44,8.219e-05,2]
[397815948,1765233047308,-554.84,8.219e-05,2]
[397815950,1765233047317,-500.0,8.219e-05,2]
[397815952,1765233047326,-4417.18,8.219e-05,2]
[397815954,1765233047336,-951.7,8.219e-05,2]
[397815956,1765233047345,-500.0,8.219e-05,2]
[397815958,1765233047355,-500.0,8.219e-05,2]
[397815960,1765233047365,-500.0,8.219e-05,2]
[397815963,1765233047376,-2946.66,8.219e-05,2]
[397815965,1765233047385,-966.88,8.219e-05,2]
[397815967,1765233047395,-500.0,8.219e-05,2]
[397815969,1765233047404,-535.1,8.219e-05,2]
[397815971,1765233047413,-500.0,8.219e-05,2]
[397815973,1765233047423,-4976.98,8.219e-05,2]
[397815975,1765233047432,-500.0,8.219e-05,2]
[397815977,1765233047442,-1986.68,8.219e-05,2]
[397815979,1765233047453,-511.57,8.219e-05,2]
[397815981,1765233047462,-1142.72,8.219e-05,2]
[397815983,1765233047472,-500.0,8.219e-05,2]
[397815985,1765233047481,-2433.31,8.219e-05,2]
[397815987,1765233047490,-500.0,8.219e-05,2]
[397815989,1765233047500,-500.0,8.219e-05,2]
[397815991,1765233047509,-500.0,8.219e-05,2]
[397815993,1765233047519,-500.0,8.219e-05,2]
[397815995,1765233047528,-500.0,8.219e-05,2]
[397815997,1765233047537,-735.76,8.219e-05,2]
[397815999,1765233047547,-1072.43,8.219e-05,2]
[397816001,1765233047557,-500.0,8.219e-05,2]
[397816003,1765233047567,-554.84,8.219e-05,2]
[397816005,1765233047576,-654.85,8.219e-05,2]
[397816007,1765233047585,-500.0,8.219e-05,2]
[397816009,1765233047594,-500.0,8.219e-05,2]
[397816011,1765233047604,-641.17,8.219e-05,2]
[397816013,1765233047613,-854.14,8.219e-05,2]
[397816015,1765233047622,-697.05,8.219e-05,2]
[397816017,1765233047632,-500.0,8.219e-05,2]
[397816019,1765233047642,-500.0,8.219e-05,2]
[397816021,1765233047651,-1038.37,8.219e-05,2]
[397816023,1765233047661,-500.0,8.219e-05,2]
[397816025,1765233047670,-1332.07,8.219e-05,2]
[397816027,1765233047680,-157.20820288,8.219e-05,2]
[397816029,1765233047690,-500.0,8.219e-05,2]
[397816031,1765233047699,-6744.23384102,8.219e-05,2]
[397816034,1765233047717,-1644.04615898,8.219e-05,2]
[397816036,1765233047726,-500.0,8.219e-05,2]
[397816038,1765233047736,-398.28415217,8.219e-05,2]
[397816040,1765233047748,-101.71584783,8.219e-05,2]
[397816042,1765233047757,-414.79158331,8.219e-05,2]
[397816044,1765233047769,-85.20841669,8.219e-05,2]
[397816046,1765233047778,-625.41,8.219e-05,2]
[397816048,1765233047788,-1185.4,8.219e-05,2]
[397816050,1765233047797,-500.0,8.219e-05,2]
[397816052,1765233047807,-748.73,8.219e-05,2]
[397816054,1765233047816,-1293.6,8.219e-05,2]
[397816056,1765233047825,-500.0,8.219e-05,2]
[397816058,1765233047834,-500.0,8.219e-05,2]
[397816060,1765233047844,-707.60181382,8.219e-05,2]
[397816065,1765233047883,-483.90748233,8.219e-05,2]
[397827834,1765234025082,-5000.0,6.317e-05,2]
[397827835,1765234025102,-4780.70334486,6.381e-05,2]
[397827836,1765234025127,-300.0,6.476e-05,2]
[397827837,1765234025147,-280.39799082,6.477e-05,2]
[397827838,1765234025170,-513.0,6.51e-05,2]
[397827839,1765234025189,-371.476,6.609e-05,2]
[397827840,1765234025209,-180.22642355,6.609e-05,2]
[397827841,1765234025230,-1200.0,6.739e-05,2]
[397827842,1765234025249,-1200.0,6.74e-05,2]
[397827843,1765234025269,-300.0,6.74e-05,2]
[397827844,1765234025288,-500.0,6.743e-05,2]
[397827845,1765234025310,-500.0,6.743e-05,2]
[397827846,1765234025330,-500.0,6.743e-05,2]
[397827847,1765234025350,-500.0,6.743e-05,2]
[397827848,1765234025374,-500.0,6.743e-05,2]
[397827849,1765234025396,-500.0,6.743e-05,2]
[397827850,1765234025418,-602.143583,6.743e-05,2]
[397827851,1765234025689,-500.0,6.743e-05,2]
[397827852,1765234025715,-215.15901568,6.743e-05,2]
[397827853,1765234025742,-98111.4781248,6.744e-05,2]
[397827854,1765234025789,-21727.31466578,6.744e-05,2]
[397827856,1765234168084,-300.0,6.643e-05,2]
[397827857,1765234168104,-274.79003101,6.644e-05,2]
[397827858,1765234168132,-12627.74941986,6.644e-05,2]
[397827895,1765234232164,-462.228,6.577e-05,2]
[397827950,1765234238335,-500.0,6.577e-05,2]
[397827954,1765234238391,-2414.14607397,6.577e-05,2]
[397827955,1765234238536,-408.51944739,6.577e-05,2]
[397827956,1765234238546,-251.0,6.643e-05,2]
[397827957,1765234238555,-300.0,6.643e-05,2]
[397827958,1765234238565,-1200.0,6.643e-05,2]
[397827959,1765234238575,-514.0,6.644e-05,2]
[397827960,1765234238584,-60082.77344574,6.644e-05,2]
[397828182,1765234240598,-500.0,6.644e-05,2]
[397828496,1765234243743,-4470.52434154,6.644e-05,2]
[397828498,1765234243755,-2903.46093339,6.644e-05,2]
[397828500,1765234243765,-908.51,6.644e-05,2]
[397828777,1765234246365,-12950.50938697,6.644e-05,2]
[397828779,1765234246382,-407.6911998,6.644e-05,2]
[397828782,1765234246393,-454.932072,6.644e-05,2]
[397828785,1765234246411,-501.05,6.644e-05,2]
[397834721,1765234705360,249.19129496,0.00010959,7]
[397834723,1765235040575,253.88165314,0.00010959,7]
[397834740,1765235140416,-183.22070948,5.582e-05,2]
[397834741,1765235140437,-59.27491309,5.639e-05,2]
[397834742,1765235246175,-183.22070948,5.639e-05,2]
[397834744,1765235345084,-2336.07195943,5.639e-05,2]
[397834745,1765235345105,-274.21403848,5.729e-05,2]
[397834746,1765235345126,-228.6219416,5.82e-05,2]
[397834747,1765235345159,-347.17073488,5.82e-05,2]
[397834748,1765235350081,-156.82926512,5.82e-05,2]
[397834749,1765235350101,-455.355,6.511e-05,2]
[397834750,1765235350123,-300.0,6.543e-05,2]
[397834751,1765235350149,-12604.6781599,6.544e-05,2]
[397834752,1765235362086,-92491.91901894,6.544e-05,2]
[397834781,1765235432360,-513.0,6.544e-05,2]
[397834783,1765235432370,-639.96700882,6.544e-05,2]
[397834940,1765235438629,-553.1658229,6.544e-05,2]
[397834942,1765235438640,-518.21374153,6.544e-05,2]
[397834956,1765235438757,-1061.86066332,6.544e-05,2]
[397835280,1765235441925,-3704.51237733,6.544e-05,2]
[397835283,1765235441937,-4124.83434121,6.544e-05,2]
[397835285,1765235441950,-1045.38613729,6.544e-05,2]
[397835287,1765235441966,-15442.97707447,6.544e-05,2]
[397835467,1765235443631,-48013.56920871,6.544e-05,2]
[397835489,1765235443811,-93189.86966804,6.544e-05,2]
[397835760,1765235446594,-6762.61166162,6.544e-05,2]
[397841793,1765235572431,491.41,0.00014856,30]
[397841794,1765235575292,174.95269655,0.00011025,7]
[397841795,1765235652757,488.73,0.00013675,30]
[397841796,1765235653163,977.46,0.00014326,30]
[397841797,1765235653568,1315.89719735,0.00014977,30]
[397841798,1765235731651,473.55,0.00013321,30]
[397841799,1765235732049,947.11,0.00013955,30]
[397841800,1765235810996,465.8,0.00013099,30]
[397841801,1765235811423,931.61,0.00013723,30]
[397841803,1765235890865,458.18,0.00013136,30]
[397841804,1765235891486,916.36,0.00013761,30]
[397841806,1765235970319,450.68,0.0001309,30]
[397841807,1765235970726,901.37,0.00013713,30]
[397841809,1765236049294,443.31,0.00013181,30]
[397841810,1765236049708,886.62,0.00013808,30]
[397841820,1765236274266,436.05,0.00013092,30]
[397841821,1765236274677,872.11,0.00013716,30]
[397841822,1765236352541,428.92,0.00011899,30]
[397841823,1765236352992,857.84,0.00012465,30]
[397841824,1765236353390,1286.76,0.00013032,30]
[397841825,1765236353857,1715.68,0.00013599,30]
[397841829,1765236429134,-585.04088434,6.348e-05,2]
[397841830,1765236429157,-54.59482316,6.38e-05,2]
[397841831,1765236432119,405.52,0.0001062,30]
[397841832,1765236432770,811.05,0.00011126,30]
[397841833,1765236433019,1216.57,0.00011632,30]
[397841834,1765236433346,1622.09,0.00012137,30]
[397841835,1765236433754,2027.62,0.00012643,30]
[397841836,1765236434152,2433.14,0.00013149,30]
[397841837,1765236434586,2838.67,0.00013655,30]
[397841838,1765236436092,-227.96610287,6.38e-05,2]
[397841839,1765236436117,-716.0,6.412e-05,2]
[397841840,1765236436141,-300.0,6.412e-05,2]
[397841841,1765236436167,-454.86506278,6.413e-05,2]
[397841842,1765236452099,-56.13493722,6.413e-05,2]
[397841843,1765236452120,-192.13396446,6.413e-05,2]
[397841844,1765236508758,343.59,0.00012049,30]
[397841845,1765236509193,687.18,0.00012623,30]
[397841846,1765236509635,1030.77,0.00013196,30]
[397841847,1765236510025,1374.36,0.0001377,30]
[397841854,1765236557206,-300.0,6.412e-05,2]
[397841855,1765236557231,-12088.25820864,6.413e-05,2]
[397841856,1765236557254,-500.0,6.443e-05,2]
[397841857,1765236557276,-500.0,6.443e-05,2]
[397841858,1765236557298,-500.0,6.443e-05,2]
[397841859,1765236557326,-500.0,6.443e-05,2]
[397841860,1765236557346,-500.0,6.443e-05,2]
[397841861,1765236557368,-170.27783851,6.443e-05,2]
[397841862,1765236557388,-422.74056468,6.443e-05,2]
[397841863,1765236557416,-327671.64462599,6.444e-05,2]
[397841882,1765236632470,-401.15789213,6.444e-05,2]
[397841908,1765236638683,-110.84210787,6.444e-05,2]
[397841909,1765236638693,-5561.85356058,6.444e-05,2]
[397841912,1765236638704,-27082.3,6.444e-05,2]
[397841914,1765236638715,-3006.72,6.444e-05,2]
[397841916,1765236638727,-2739.5793,6.444e-05,2]
[397841940,1765236638938,-1587.82724308,6.444e-05,2]
[397841943,1765236638949,-971.06999034,6.444e-05,2]
[397841945,1765236638961,-2668.98,6.444e-05,2]
[397841948,1765236638978,-12271.545354,6.444e-05,2]
[397842266,1765236642117,-12310.96601675,6.444e-05,2]
[397842268,1765236642129,-736.81817554,6.444e-05,2]
[397842270,1765236642140,-493390.69573372,6.444e-05,2]
[397842272,1765236642150,-250.0,6.543e-05,2]
[397842274,1765236642159,-749.1355021,6.605e-05,2]
[397842276,1765236642169,-10625.3184809,6.605e-05,2]
[397842278,1765236642179,-1887.7537612,6.723e-05,2]
[397842280,1765236642188,-300.0,6.878e-05,2]
[397842282,1765236642197,-300.0,6.878e-05,2]
[397842284,1765236642206,-300.0,6.878e-05,2]
[397842286,1765236642216,-300.0,6.878e-05,2]
[397842288,1765236642226,-300.0,6.878e-05,2]
[397842290,1765236642235,-300.0,6.878e-05,2]
[397842292,1765236642245,-300.0,6.878e-05,2]
[397842294,1765236642254,-300.0,6.878e-05,2]
[397842296,1765236642263,-300.0,6.878e-05,2]
[397842298,1765236642272,-300.0,6.878e-05,2]
[397842300,1765236642281,-300.0,6.878e-05,2]
[397842302,1765236642290,-300.0,6.878e-05,2]
[397842304,1765236642299,-300.0,6.878e-05,2]
[397842306,1765236642308,-300.0,6.878e-05,2]
[397842308,1765236642318,-300.0,6.878e-05,2]
[397842310,1765236642327,-600.0,6.878e-05,2]
[397842312,1765236642337,-794.6260506,6.88e-05,2]
[397842314,1765236642347,-757.98,7.03e-05,2]
[397842316,1765236642356,-380.17530262,7.141e-05,2]
[397842318,1765236642366,-684.31554472,7.141e-05,2]
[397842320,1765236642375,-1215.34440741,7.141e-05,2]
[397842322,1765236642384,-749.1355021,7.301e-05,2]
[397842324,1765236642393,-398.208,7.301e-05,2]
[397842326,1765236642402,-1515.96,7.365e-05,2]
[397842328,1765236642411,-416.79442404,7.418e-05,2]
[397842330,1765236642420,-476.33648461,7.418e-05,2]
[397842332,1765236642429,-500.0,7.42e-05,2]
[397842334,1765236642438,-2370.8290142,7.451e-05,2]
[397842336,1765236642447,-485.91558555,7.526e-05,2]
[397842338,1765236642456,-720.0,7.566e-05,2]
[397842340,1765236642465,-1294.18961489,7.596e-05,2]
[397842342,1765236642474,-250.0,7.635e-05,2]
[397842344,1765236642483,-529.0034576,7.64e-05,2]
[397842346,1765236642492,-2273.94,7.7e-05,2]
[397842348,1765236642501,-500.0,7.816e-05,2]
[397842350,1765236642510,-500.0,7.816e-05,2]
[397842352,1765236642520,-500.0,7.816e-05,2]
[397842354,1765236642530,-500.0,7.816e-05,2]
[397842356,1765236642539,-500.0,7.816e-05,2]
[397842358,1765236642548,-500.0,7.816e-05,2]
[397842360,1765236642558,-500.0,7.816e-05,2]
[397842362,1765236642567,-500.0,7.816e-05,2]
[397842364,1765236642576,-500.0,7.816e-05,2]
[397842366,1765236642585,-500.0,7.816e-05,2]
[397842368,1765236642594,-500.0,7.816e-05,2]
[397842370,1765236642603,-871.76948339,7.816e-05,2]
[397842371,1765236642612,-500.0,7.816e-05,2]
[397842373,1765236642620,-500.0,7.816e-05,2]
[397842375,1765236642630,-500.0,7.816e-05,2]
[397842377,1765236642639,-1000.0,7.816e-05,2]
[397842379,1765236642648,-1000.0,7.816e-05,2]
[397842381,1765236642656,-1000.0,7.816e-05,2]
[397842383,1765236642666,-1000.0,7.816e-05,2]
[397842385,1765236642674,-1000.0,7.816e-05,2]
[397842387,1765236642683,-1000.0,7.816e-05,2]
[397842389,1765236642692,-1000.0,7.816e-05,2]
[397842391,1765236642701,-1000.0,7.816e-05,2]
[397842393,1765236642710,-1000.0,7.816e-05,2]
[397842395,1765236642719,-1000.0,7.816e-05,2]
[397842397,1765236642728,-1000.0,7.816e-05,2]
[397842399,1765236642738,-1000.0,7.816e-05,2]
[397842401,1765236642747,-1000.0,7.816e-05,2]
[397842403,1765236642757,-1000.0,7.816e-05,2]
[397842404,1765236642766,-1000.0,7.816e-05,2]
[397842405,1765236642775,-1000.0,7.816e-05,2]
[397842406,1765236642785,-1000.0,7.816e-05,2]
[397842407,1765236642795,-1019.30768181,7.816e-05,2]
[397842408,1765236642803,-2155.0,7.866e-05,2]